bitfinex/quotes_ETHUSD_20250807
["timestamp","ask_amount","ask_price","bid_price","bid_amount"]
[1754574427364,0.12960001,3852.4,3852.3,2.59585182]
[1754574427743,0.12960001,3852.4,3852.0,3.0]
[1754574427953,0.12960001,3852.4,3852.3,2.59585182]
[1754574429761,1e-08,3852.4,3852.3,2.59585182]
[1754574431184,1e-08,3852.4,3852.3,6.59758231]
[1754574431983,1e-08,3852.4,3852.3,3.0]
[1754574432352,0.87710001,3852.4,3851.7,3.1296]
[1754574432552,0.1296,3852.3,3851.8,3.0]
[1754574432857,0.1296,3852.3,3852.2,2.59591921]
[1754574433058,1e-08,3852.4,3852.3,5.59585182]
[1754574433259,1e-08,3852.4,3852.3,6.85335182]
[1754574433461,1e-08,3852.4,3852.3,5.59585182]
[1754574434597,1e-08,3852.4,3851.7,2.59625619]
[1754574434781,0.1296,3852.3,3851.9,2.59606909]
[1754574434969,1.3053,3852.2,3852.1,3.0]
[1754574435273,0.1296,3852.1,3851.9,2.59611881]
[1754574435673,0.1296,3852.1,3851.7,2.59625484]
[1754574435876,0.1296,3851.8,3851.4,2.59645843]
[1754574436075,0.1296,3851.8,3851.7,2.59625619]
[1754574436781,0.1296,3851.8,3851.3,0.26595603]
[1754574436782,1.0067,3851.8,3851.3,0.26595603]
[1754574437004,0.1296,3851.6,3851.5,2.59636631]
[1754574437624,0.1296,3851.6,3851.5,8.62389011]
[1754574437783,0.1296,3851.6,3851.5,7.81129011]
[1754574437989,0.87710001,3852.4,3852.2,2.59591619]
[1754574438293,0.8771,3852.3,3852.1,2.59596184]
[1754574438611,1.0067,3852.2,3852.1,2.59596184]
[1754574438810,1.0067,3852.2,3851.5,4.8996238]
[1754574438979,0.8771,3852.2,3851.9,2.5960747]
[1754574439302,0.8771,3852.1,3852.0,2.59605399]
[1754574439622,0.1296,3851.9,3851.8,2.59618879]
[1754574439920,0.1296,3852.2,3852.1,2.59593978]
[1754574440399,0.1296,3852.2,3851.6,3.1296]
[1754574440722,1e-08,3852.4,3851.6,3.1296]
[1754574440723,1e-08,3852.4,3852.3,2.59585182]
[1754574441507,1e-08,3852.4,3852.3,3.05825182]
[1754574441978,1e-08,3852.4,3852.0,0.1296]
[1754574442185,0.1296,3852.3,3852.0,2.59604827]
[1754574442623,0.1296,3852.3,3851.9,3.0]
[1754574442801,0.9938,3852.3,3852.0,2.59599139]
[1754574443010,0.8642,3852.2,3852.1,2.5959866]
[1754574443396,0.1296,3852.3,3852.2,2.59591921]
[1754574444496,1e-08,3852.4,3852.3,2.59585182]
[1754574444693,1e-08,3852.4,3852.3,3.84775182]
[1754574445027,1e-08,3852.4,3852.3,6.84775182]
[1754574445327,1e-08,3852.4,3852.3,18.40933182]
[1754574445514,1e-08,3852.4,3852.3,16.88685582]
[1754574445719,1e-08,3852.4,3852.3,19.5717351]
[1754574446552,1e-08,3852.4,3852.3,5.59685182]
[1754574447446,1e-08,3852.4,3852.3,9.95245182]
[1754574448014,0.002,3852.8,3852.7,2.59558231]
[1754574448333,0.002,3852.8,3852.7,9.94918231]
[1754574448631,1e-08,3852.8,3852.7,21.15558831]
[1754574448844,1e-08,3852.8,3852.7,24.49170967]
[1754574449014,1e-08,3852.8,3852.7,23.10585967]
[1754574449214,1e-08,3852.8,3852.7,23.65585967]
[1754574449902,1e-08,3852.8,3852.7,15.44180767]
[1754574450108,1e-08,3852.8,3852.7,9.94518231]
[1754574450598,1e-08,3852.8,3852.7,6.94518231]
[1754574451046,1e-08,3852.8,3852.7,6.81558231]
[1754574451846,1e-08,3852.8,3852.7,8.19708231]
[1754574452041,1e-08,3852.8,3852.7,8.02445707]
[1754574452344,1e-08,3852.8,3852.7,6.94518231]
[1754574452527,1e-08,3852.8,3852.7,6.81558231]
[1754574453608,1.29450001,3852.8,3852.7,2.59558231]
[1754574453812,4.01962253,3852.8,3852.3,0.001]
[1754574454123,0.1296,3852.4,3852.3,0.001]
[1754574454526,1.4241,3852.4,3852.3,0.001]
[1754574454706,1.4241,3852.4,3852.3,2.59685182]
[1754574455042,0.86420001,3852.8,3852.3,0.001]
[1754574455222,0.9938,3852.7,3852.6,2.59564969]
[1754574455941,1.4241,3852.7,3852.4,2.59578444]
[1754574456163,0.14241,3852.7,3852.6,2.59564969]
[1754574456315,0.8642,3852.6,3852.3,0.001]
[1754574456518,0.1296,3852.4,3852.3,2.59685182]
[1754574456944,0.9938,3852.4,3852.3,2.59685182]
[1754574457528,0.9938,3852.4,3852.3,0.001]
[1754574457728,1.4241,3852.4,3852.3,2.59685182]
[1754574457929,1.4241,3852.4,3852.3,0.001]
[1754574458866,1.56651,3852.4,3852.3,0.001]
[1754574459870,8.38129444,3852.4,3852.3,0.001]
[1754574460294,8.93129444,3852.4,3852.3,0.001]
[1754574460436,4.71229444,3852.4,3852.3,0.001]
[1754574460790,8.38129444,3852.4,3852.3,0.001]
[1754574461439,5.78551,3852.4,3852.3,0.001]
[1754574461872,8.93129444,3852.4,3852.3,0.001]
[1754574462170,2.59644025,3851.5,3851.3,0.001]
[1754574462533,1.4241,3851.4,3851.3,0.001]
[1754574462864,0.9938,3851.4,3851.3,0.001]
[1754574463244,0.1296,3851.4,3851.3,2.59752584]
[1754574464048,0.1296,3851.4,3851.3,0.001]
[1754574464231,0.9938,3851.4,3851.3,0.001]
[1754574464962,1.4241,3851.4,3851.3,0.001]
[1754574465170,1.8261422,3851.4,3851.3,0.001]
[1754574465353,1.45655573,3851.4,3851.3,0.001]
[1754574465545,1.4241,3851.4,3851.3,0.001]
[1754574466869,4.3496,3851.4,3851.3,0.001]
[1754574467672,5.2138,3851.4,3851.3,0.001]
[1754574467969,5.99480636,3851.4,3851.3,0.001]
[1754574468638,5.99480636,3851.4,3851.3,2.59752584]
[1754574469071,5.99480636,3851.4,3851.3,0.001]
[1754574469392,6.42510636,3851.4,3851.3,0.001]
[1754574469740,6.42510636,3851.4,3851.3,2.59752584]
[1754574470071,5.99480636,3851.4,3851.3,2.59752584]
[1754574470773,4.3496,3851.4,3851.3,2.59752584]
[1754574470988,0.77270001,3852.8,3851.3,1.2574]
[1754574471151,0.7727,3852.6,3851.4,10.68880255]
[1754574471343,0.1296,3851.8,3851.3,1.387]
[1754574471540,0.1296,3851.8,3851.7,2.59625619]
[1754574471981,0.7727,3852.6,3851.7,4.2564]
[1754574472277,1e-08,3852.8,3852.0,2.59601687]
[1754574472476,1e-08,3852.8,3852.7,2.59558231]
[1754574472885,1e-08,3852.8,3852.7,6.85198231]
[1754574473188,1e-08,3852.8,3852.7,14.11308131]
[1754574473388,1e-08,3852.8,3852.7,14.25550431]
[1754574473608,1e-08,3852.8,3852.7,11.51888931]
[1754574473886,1e-08,3852.8,3852.7,9.66546159]
[1754574474097,1e-08,3852.8,3852.7,5.72518231]
[1754574474262,1e-08,3852.8,3852.7,6.98158231]
[1754574474457,1e-08,3852.8,3852.7,11.39032331]
[1754574474647,1e-08,3852.8,3852.7,10.08731631]
[1754574474980,1e-08,3852.8,3852.7,14.30631631]
[1754574475187,1e-08,3852.8,3852.7,16.99019559]
[1754574475492,1e-08,3852.8,3852.7,13.88446159]
[1754574476253,1e-08,3852.8,3852.7,28.67156359]
[1754574476493,1e-08,3852.8,3852.7,23.16704159]
[1754574476693,0.002,3853.6,3853.5,2.59504346]
[1754574476880,0.002,3853.6,3853.5,5.59504346]
[1754574477205,1e-08,3853.8,3853.7,6.14490878]
[1754574477361,0.002,3855.3,3854.8,2.5941683]
[1754574477558,0.002,3855.3,3854.8,5.7237683]
[1754574477864,0.1296,3855.2,3854.8,5.5941683]
[1754574478064,0.1296,3855.2,3854.8,6.43126999]
[1754574478582,0.1296,3855.2,3854.8,5.5941683]
[1754574478760,0.7727,3855.1,3854.8,2.5941683]
[1754574479089,0.1316,3854.9,3854.8,2.5941683]
[1754574479292,0.002,3854.9,3854.8,2.5941683]
[1754574479872,0.002,3854.9,3854.7,2.59421822]
[1754574480114,0.002,3854.9,3854.7,2.59421821]
[1754574480579,0.7747,3854.9,3854.5,3.0]
[1754574480893,0.1316,3854.9,3854.8,2.5941683]
[1754574481094,0.1316,3854.9,3854.5,3.0]
[1754574481402,0.7727,3854.8,3854.4,0.1296]
[1754574481602,0.7727,3854.7,3854.4,2.72398531]
[1754574481803,0.7727,3854.7,3854.5,2.59435635]
[1754574482315,0.5836,3854.9,3854.2,3.0]
[1754574482316,1.3543,3854.6,3854.2,3.0]
[1754574482463,1.3543,3854.6,3853.6,3.4592]
[1754574482464,0.1296,3854.4,3854.3,5.59449917]
[1754574482664,0.9023,3854.4,3853.8,0.1296]
[1754574482897,0.1296,3854.1,3853.5,0.1296]
[1754574483104,0.03442626,3854.9,3852.7,1.2564]
[1754574483105,1.25713383,3854.0,3852.7,1.2564]
[1754574483300,0.1296,3853.1,3853.0,2.59536416]
[1754574483604,0.1296,3853.1,3852.5,2.59568402]
[1754574483605,1.3543,3853.1,3852.5,2.59568402]
[1754574483900,0.03243635,3853.7,3852.0,1.1]
[1754574483901,0.1296,3852.6,3852.0,1.1]
[1754574484100,0.1296,3852.6,3852.1,2.59597839]
[1754574484101,0.7727,3852.5,3852.1,2.59597839]
[1754574484409,2.59551552,3852.8,3852.3,2.59585182]
[1754574484410,0.452,3852.8,3852.3,2.59585182]
[1754574484706,0.7727,3852.7,3852.0,1.06910434]
[1754574485012,0.1296,3852.1,3852.0,1.06910434]
[1754574485360,0.1296,3852.1,3852.0,3.66515833]
[1754574485602,0.9023,3852.1,3852.0,1.06910434]
[1754574486477,0.1296,3852.1,3852.0,3.66515833]
[1754574488101,0.1296,3852.1,3852.0,4.712893]
[1754574488321,0.002,3852.7,3852.3,2.59578471]
[1754574488607,0.002,3852.7,3852.4,2.59576896]
[1754574488770,0.002,3852.7,3852.5,2.59570191]
[1754574488970,0.002,3852.7,3852.6,2.59564969]
[1754574489165,0.1316,3852.7,3852.6,2.59564969]
[1754574489371,0.9043,3852.7,3852.2,0.1296]
[1754574489571,0.7727,3852.6,3852.4,2.5957822]
[1754574489798,0.7727,3852.6,3852.0,1.06910434]
[1754574489799,0.7727,3852.6,3852.5,2.59571706]
[1754574490007,0.7727,3852.6,3852.4,2.59576453]
[1754574490224,0.7727,3852.6,3852.5,2.59571706]
[1754574490522,1.2247,3852.6,3852.0,3.66513369]
[1754574490714,0.1296,3852.3,3852.2,2.59591921]
[1754574492332,0.002,3852.7,3852.6,2.59564969]
[1754574492492,0.1316,3852.7,3852.6,2.59564969]
[1754574493121,0.1316,3852.7,3852.6,6.85204969]
[1754574493122,0.002,3852.7,3852.6,6.85204969]
[1754574493340,0.002,3852.7,3852.6,6.67002804]
[1754574493501,1.3563,3852.7,3852.4,2.59573347]
[1754574493691,0.1296,3852.5,3852.4,2.59573347]
[1754574494431,0.002,3852.7,3852.6,2.59564969]
[1754574494615,0.7747,3852.7,3852.6,2.59564969]
[1754574494933,0.1316,3852.7,3852.6,2.59564969]
[1754574495931,0.002,3852.7,3852.6,3.05484969]
[1754574496132,0.002,3852.7,3852.6,2.59564969]
[1754574496502,0.002,3852.7,3852.6,6.49450801]
[1754574496725,0.002,3852.7,3852.6,12.09550801]
[1754574497498,0.002,3852.7,3852.6,7.08330801]
[1754574497717,0.7727,3854.2,3853.7,2.59484765]
[1754574498050,1.87611376,3854.2,3853.8,2.59483953]
[1754574498209,0.7727,3854.1,3853.7,2.59489382]
[1754574498637,0.1296,3853.8,3853.7,2.59489382]
[1754574499151,6.832,3854.6,3853.7,0.25948938]
[1754574499445,0.1296,3854.0,3853.9,2.59477412]
[1754574500039,0.1296,3854.0,3853.9,3.11374138]
[1754574500238,0.6,3854.6,3854.5,2.59437021]
[1754574500417,0.7296,3854.6,3854.5,2.59437021]
[1754574501247,0.6,3854.6,3854.5,2.59437021]
[1754574501447,0.6,3854.6,3854.1,5.59461242]
[1754574501614,0.81,3854.5,3853.8,0.5591]
[1754574501810,0.1296,3854.4,3854.1,2.59458838]
[1754574502151,0.1296,3854.2,3853.5,9.80898627]
[1754574502349,0.6,3854.6,3854.5,2.59437021]
[1754574502515,0.7296,3854.6,3854.5,2.59437021]
[1754574503010,1.5396,3854.6,3854.4,2.594419]
[1754574503215,0.7296,3854.6,3854.5,2.59437021]
[1754574504034,0.7296,3854.6,3854.5,3.11325254]
[1754574504234,0.6,3854.6,3854.5,6.54275254]
[1754574504815,0.6,3854.6,3854.5,7.31455254]
[1754574505221,0.6,3854.6,3854.5,6.54275254]
[1754574505447,0.6,3854.6,3854.5,6.11325254]
[1754574505646,0.6,3854.6,3854.5,5.59437021]
[1754574506067,1.41,3854.6,3854.5,5.59437021]
[1754574506214,0.6,3854.6,3854.5,5.59437021]
[1754574507951,1.5396,3854.6,3854.5,5.59437021]
[1754574508150,1.9751,3854.6,3854.5,2.59437021]
[1754574508320,1.9751,3854.6,3854.4,5.59438695]
[1754574508519,0.81,3854.5,3854.3,3.0]
[1754574508944,0.9396,3854.4,3854.3,5.59450483]
[1754574509360,0.1296,3854.4,3854.3,5.59450483]
[1754574509528,0.7296,3854.6,3854.5,2.59437021]
[1754574510566,1.5396,3854.6,3854.3,3.0]
[1754574510774,0.7296,3854.6,3854.5,2.59437021]
[1754574511685,1.5396,3854.6,3854.5,2.59437021]
[1754574511970,0.7296,3854.6,3854.5,2.59437021]
[1754574512181,2.12926,3854.6,3853.2,2.5951855]
[1754574512347,2.12926,3854.6,3852.7,0.13522732]
[1754574512348,0.1296,3854.1,3853.5,2.59501238]
[1754574512539,0.1296,3853.6,3852.9,0.1296]
[1754574512743,0.1296,3853.6,3853.5,5.59504346]
[1754574513953,0.1296,3853.6,3853.5,3.0]
[1754574514153,0.1296,3853.6,3853.5,5.59504346]
[1754574514484,1.3751,3853.6,3853.3,3.0]
[1754574514686,1.2455,3853.5,3852.9,3.0]
[1754574514841,0.1296,3853.3,3853.2,2.59520051]
[1754574515042,0.9396,3853.3,3853.2,2.59520051]
[1754574515474,0.9396,3853.3,3852.9,2.5954281]
[1754574515675,0.9396,3853.3,3852.8,3.0]
[1754574515855,0.9396,3853.3,3852.7,6.94080455]
[1754574515856,1.2455,3853.2,3852.7,6.94080455]
[1754574516159,0.81,3853.1,3852.8,2.59550453]
[1754574516479,0.1296,3853.0,3852.9,5.59544758]
[1754574516989,0.81,3854.2,3852.9,20.3537274]
[1754574517275,0.81,3854.4,3853.8,2.59482541]
[1754574517446,0.1296,3853.9,3853.8,3.92318821]
[1754574517645,0.6,3854.6,3853.8,3.4295]
[1754574517844,0.6,3854.6,3854.3,2.59449434]
[1754574518045,0.6,3854.6,3854.4,2.59441395]
[1754574518351,0.1296,3854.5,3854.2,3.0]
[1754574518786,0.1296,3854.5,3854.2,5.59451604]
[1754574519076,0.1296,3854.5,3854.4,2.59443752]
[1754574520088,0.1296,3854.5,3854.2,5.59456228]
[1754574520299,0.1296,3854.5,3854.4,2.59443752]
[1754574520500,0.6,3854.6,3854.5,2.59437021]
[1754574520678,0.6,3854.6,3854.5,11.82357019]
[1754574520844,0.6,3854.6,3854.5,11.05177019]
[1754574521475,0.6,3854.6,3854.5,10.62227019]
[1754574521877,0.6,3854.6,3854.5,6.41327019]
[1754574522180,0.6,3854.6,3854.5,3.0]
[1754574522384,1.5396,3854.6,3854.5,2.59437021]
[1754574522549,0.6,3854.6,3854.5,2.59437021]
[1754574523058,0.6,3854.6,3854.4,2.59441365]
[1754574523059,1.41,3854.6,3854.4,2.59441365]
[1754574523376,0.1296,3854.4,3854.2,5.59455097]
[1754574523780,0.1296,3854.4,3851.6,2.44962785]
[1754574523781,0.81,3854.3,3853.8,2.59478984]
[1754574523943,0.1296,3853.9,3853.8,2.59483996]
[1754574524145,0.1296,3853.9,3853.8,5.59483996]
[1754574525251,0.1296,3853.9,3853.8,3.0]
[1754574525749,1.3751,3853.9,3853.3,4.208]
[1754574525953,0.1296,3853.4,3853.2,2.5951817]
[1754574526183,0.1296,3853.4,3853.1,4.34225617]
[1754574526184,0.81,3853.3,3853.1,0.13525617]
[1754574526488,1.3751,3853.2,3853.1,0.13525617]
[1754574526855,8.17734551,3853.2,3853.1,0.13525617]
[1754574527181,0.9396,3853.2,3852.3,0.001]
[1754574527482,0.81,3853.2,3852.5,2.73096246]
[1754574527647,0.81,3853.2,3852.6,2.59564969]
[1754574527854,0.81,3853.2,3852.7,2.59557318]
[1754574528164,0.81,3853.1,3852.5,2.73096926]
[1754574528369,0.81,3853.1,3852.7,2.59551526]
[1754574528677,0.1296,3852.7,3852.6,2.59563481]
[1754574529378,0.1296,3852.8,3852.6,3.53276313]
[1754574529579,0.1296,3852.8,3852.7,5.59558231]
[1754574529981,0.5651,3852.8,3852.7,3.0]
[1754574530369,1.3774,3852.8,3852.7,3.0]
[1754574530572,1.07964,3852.8,3852.5,0.13527301]
[1754574530783,0.8123,3853.2,3852.8,2.59549735]
[1754574531085,0.8123,3853.1,3852.6,2.59563662]
[1754574531252,4.207,3853.4,3852.6,2.59563662]
[1754574531253,0.1296,3852.7,3852.6,2.59563662]
[1754574531884,0.9419,3852.7,3852.3,0.001]
[1754574532086,0.8123,3852.6,3852.5,2.59566628]
[1754574532474,0.9419,3852.6,3852.5,2.59566628]
[1754574532788,0.1296,3852.6,3852.5,2.59566628]
[1754574533286,0.1296,3852.6,3852.5,4.40565474]
[1754574533464,0.8123,3853.2,3853.1,2.59531286]
[1754574534587,0.9419,3853.2,3853.1,3.69531286]
[1754574534991,0.1296,3853.2,3853.1,3.69531286]
[1754574536057,4.206,3853.8,3853.5,2.59501323]
[1754574536285,4.206,3853.8,3853.7,2.59490878]
[1754574536690,0.1296,3853.8,3853.7,2.59490878]
[1754574537684,0.002,3854.0,3853.8,2.59482836]
[1754574537889,0.1296,3853.6,3853.3,12.90736709]
[1754574538090,0.1296,3853.6,3853.5,2.59504346]
[1754574538474,0.9419,3853.6,3853.5,2.59504346]
[1754574538959,0.9419,3853.6,3853.2,2.5952209]
[1754574539160,1.259,3853.5,3853.1,1.1]
[1754574539467,0.1296,3853.2,3853.1,1.1]
[1754574539695,1.3886,3853.2,3853.1,1.1]
[1754574540208,0.9419,3853.2,3853.1,3.69531286]
[1754574540562,0.1296,3853.2,3853.1,3.69531286]
[1754574540763,0.9419,3853.2,3853.1,3.69531286]
[1754574541302,0.1296,3853.2,3853.1,3.69531286]
[1754574543309,0.9419,3853.2,3853.1,1.1]
[1754574543711,1.3886,3853.2,3853.1,1.1]
[1754574544194,1.3886,3853.2,3853.1,3.69531286]
[1754574544195,0.1296,3853.2,3853.1,3.69531286]
[1754574545195,0.1296,3853.2,3853.1,5.07618793]
[1754574545393,0.1296,3853.2,3853.1,5.85698793]
[1754574545594,4.203,3853.7,3853.6,2.59497612]
[1754574545894,4.3326,3853.7,3853.5,2.59502358]
[1754574546102,0.1296,3853.7,3853.3,12.90736709]
[1754574546303,1.259,3853.6,3853.1,1.1]
[1754574546473,1.259,3853.5,3853.2,2.59519908]
[1754574546680,0.1296,3853.2,3853.1,3.69530326]
[1754574547084,0.1296,3853.2,3853.1,4.14710326]
[1754574547298,4.203,3853.7,3853.1,4.55240637]
[1754574547465,4.203,3853.7,3853.2,2.59524551]
[1754574547466,0.1296,3853.3,3853.2,2.59524551]
[1754574548023,0.002,3854.0,3853.9,2.59477412]
[1754574548317,0.7296,3854.6,3854.5,2.59437021]
[1754574548495,0.6,3854.6,3854.5,2.59437021]
[1754574548672,0.6,3854.6,3854.5,6.05679442]
[1754574548871,0.6,3854.6,3854.5,5.27599442]
[1754574549482,0.6,3854.6,3854.5,9.47799442]
[1754574550304,0.6,3854.6,3854.5,10.25879442]
[1754574550480,0.6,3854.6,3854.5,9.47799442]
[1754574550828,0.6,3854.6,3854.5,9.02619442]
[1754574551615,0.6,3854.6,3854.5,9.02519442]
[1754574551820,0.6,3854.6,3854.5,2.59437021]
[1754574552274,0.6,3854.6,3854.4,0.1296]
[1754574552275,1.859,3854.6,3854.4,0.1296]
[1754574552623,0.9419,3854.5,3854.2,3.0]
[1754574552777,0.9419,3854.5,3854.2,5.59455074]
[1754574552977,0.8123,3854.4,3854.3,2.59449025]
[1754574553193,0.1296,3854.5,3854.4,2.59443752]
[1754574553406,0.1296,3854.5,3854.3,2.59450285]
[1754574553586,0.8123,3854.4,3854.2,5.59456841]
[1754574553790,0.9419,3854.3,3854.1,5.59463439]
[1754574554017,0.8123,3854.2,3854.0,3.0]
[1754574554328,0.9419,3854.1,3853.9,3.0]
[1754574554628,0.9419,3854.1,3853.9,2.59470821]
[1754574554973,0.1296,3854.1,3854.0,2.59470679]
[1754574555179,0.602,3854.6,3854.5,2.59437021]
[1754574555403,0.7316,3854.6,3854.5,15.5017373]
[1754574556019,1.5439,3854.6,3854.0,3.1296]
[1754574556333,0.1296,3854.4,3854.2,3.0]
[1754574556505,0.8123,3854.3,3854.0,3.0]
[1754574556676,0.97433215,3854.2,3853.8,2.59483622]
[1754574556872,1.259,3854.1,3853.8,3.0]
[1754574557107,0.1296,3853.9,3853.7,2.59485551]
[1754574557324,0.1296,3853.9,3853.8,2.59484145]
[1754574557478,0.1296,3853.7,3853.6,3.4518]
[1754574557683,0.1296,3853.7,3853.6,8.31690962]
[1754574558580,0.4487,3854.6,3853.8,2.59484145]
[1754574558581,0.1296,3853.9,3853.8,2.59484145]
[1754574559586,0.1296,3853.9,3853.6,5.2701335]
[1754574559587,0.9419,3853.9,3853.6,3.0]
[1754574559805,0.8123,3853.9,3853.8,2.59484145]
[1754574560111,0.8005,3854.5,3853.9,2.59472858]
[1754574560279,3.06218219,3854.4,3853.7,2.59489184]
[1754574560476,0.1296,3853.9,3853.6,3.0]
[1754574560716,0.1296,3853.9,3853.8,2.59484145]
[1754574562603,0.1296,3853.9,3853.8,3.05904145]
[1754574563006,0.1296,3853.9,3853.8,4.42413647]
[1754574563318,0.002,3854.6,3854.5,2.59437021]
[1754574563919,0.1316,3854.6,3854.5,2.59437021]
[1754574564518,0.4697,3855.1,3854.5,2.59437021]
[1754574564519,0.002,3855.1,3854.5,24.54530421]
[1754574564694,0.1296,3855.4,3855.3,2.59383186]
[1754574565013,0.1296,3856.0,3855.6,2.59363004]
[1754574565230,0.1296,3856.0,3855.6,6.78963004]
[1754574566438,0.1296,3856.0,3855.6,7.25383004]
[1754574566640,1e-08,3856.5,3855.6,7.25383004]
[1754574566641,1e-08,3856.5,3856.4,2.593092]
[1754574566803,1e-08,3856.5,3856.4,15.50045909]
[1754574566999,0.12960001,3856.5,3856.4,15.50045909]
[1754574567213,0.93010001,3856.5,3855.9,0.1296]
[1754574567413,0.12960001,3856.5,3856.4,2.593092]
[1754574567835,0.12960001,3856.5,3856.3,17.10236709]
[1754574568835,0.8005,3856.4,3855.9,0.1296]
[1754574569038,0.8005,3856.4,3856.2,12.90736709]
[1754574569334,0.12960001,3856.5,3856.2,12.90736709]
[1754574569510,0.8005,3856.4,3856.2,12.90736709]
[1754574569716,0.8005,3856.3,3856.0,4.194]
[1754574570135,0.12960001,3856.5,3856.0,4.194]
[1754574570327,0.12960001,3856.5,3856.2,12.90736709]
[1754574571005,3.86130683,3856.4,3855.8,3.0]
[1754574571201,0.1296,3856.1,3855.9,4.193]
[1754574571512,0.1296,3856.1,3856.0,5.59336099]
[1754574571829,0.9301,3856.4,3856.0,7.193]
[1754574572027,0.8005,3856.3,3856.0,3.0]
[1754574572224,0.5973,3856.4,3856.0,3.0]
[1754574572543,0.8005,3856.2,3856.0,3.0]
[1754574573055,0.8005,3856.2,3856.0,5.59332599]
[1754574573359,0.1296,3856.2,3856.0,3.0]
[1754574574051,0.5973,3856.2,3856.0,3.0]
[1754574574254,0.8005,3856.1,3856.0,3.0]
[1754574574455,0.1296,3856.2,3856.1,2.59329374]
[1754574574653,0.1296,3856.2,3856.0,5.59333765]
[1754574574815,0.1296,3856.2,3856.1,2.59329374]
[1754574575020,0.10000001,3856.5,3856.0,3.0]
[1754574575319,0.1296,3856.4,3856.3,15.50052633]
[1754574576019,0.1296,3856.4,3856.3,15.96472633]
[1754574576231,0.1296,3856.4,3856.3,20.15572633]
[1754574576552,0.1296,3856.4,3856.3,24.16062834]
[1754574576756,0.10000001,3856.5,3856.4,3.143092]
[1754574577166,0.10000001,3856.5,3856.4,2.593092]
[1754574577461,0.10000001,3856.5,3856.4,3.986892]
[1754574577757,0.10000001,3856.5,3856.4,3.186892]
[1754574578322,0.10000001,3856.5,3856.4,2.722692]
[1754574578727,0.10000001,3856.5,3856.4,3.186892]
[1754574579178,0.10000001,3856.5,3856.4,3.986892]
[1754574580030,0.10000001,3856.5,3856.4,2.722692]
[1754574580274,0.10000001,3856.5,3856.4,3.186892]
[1754574580440,0.10000001,3856.5,3856.4,2.722692]
[1754574580769,0.002,3857.0,3856.4,2.722692]
[1754574580770,0.002,3857.0,3856.9,2.59275584]
[1754574580978,0.002,3857.2,3857.1,2.59262139]
[1754574581127,0.002,3857.2,3857.1,9.91122139]
[1754574581664,0.002,3857.2,3857.1,5.72222139]
[1754574581826,0.002,3857.2,3857.1,9.78062139]
[1754574582523,0.002,3857.2,3857.1,13.33585582]
[1754574582720,0.002,3857.2,3857.1,14.13585582]
[1754574583023,0.002,3857.7,3857.6,2.59228535]
[1754574583223,0.002,3857.7,3857.6,15.49965244]
[1754574584869,0.002,3857.7,3857.6,17.09436709]
[1754574585029,0.002,3857.7,3857.6,19.68665244]
[1754574585580,0.002,3857.7,3857.6,22.68665244]
[1754574585733,0.002,3858.6,3858.5,15.49904779]
[1754574585935,0.002,3858.6,3858.5,22.68504779]
[1754574586130,0.8005,3859.4,3858.7,0.55]
[1754574586438,2.59071695,3860.0,3858.9,2.59141206]
[1754574586439,0.1296,3859.5,3858.9,2.59141206]
[1754574586643,0.1296,3859.5,3859.0,4.186]
[1754574586860,0.8005,3859.4,3858.6,3.0]
[1754574587150,0.1296,3858.9,3858.3,0.1296]
[1754574587355,0.1296,3858.9,3858.5,15.90736709]
[1754574587554,0.1296,3858.9,3858.8,2.59147921]
[1754574587739,0.1296,3859.0,3858.8,6.77747921]
[1754574587945,0.1296,3859.2,3859.0,2.59133927]
[1754574588131,0.1296,3859.2,3859.1,2.59127775]
[1754574588333,0.1296,3859.2,3859.0,6.77632838]
[1754574588532,0.1296,3859.2,3859.0,4.185]
[1754574588938,0.8005,3859.1,3858.7,2.72112276]
[1754574589139,0.1296,3858.9,3858.7,4.185]
[1754574589341,0.9301,3858.9,3858.7,4.185]
[1754574589546,0.8005,3859.4,3858.7,4.6492]
[1754574589747,0.1296,3859.3,3859.1,2.5912319]
[1754574589967,0.1296,3859.3,3859.1,6.7752319]
[1754574590271,0.1296,3859.3,3859.2,2.59121061]
[1754574590471,0.7561,3859.7,3859.1,4.184]
[1754574590675,0.1296,3859.7,3859.6,2.59094206]
[1754574590837,1.18350183,3860.3,3860.2,2.59053935]
[1754574591044,0.7561,3860.7,3860.5,2.59032856]
[1754574591245,0.457,3861.0,3860.4,6.77435485]
[1754574591442,0.457,3861.0,3860.4,4.184]
[1754574591443,0.7561,3860.9,3860.4,4.184]
[1754574591644,0.7561,3860.8,3860.2,15.4978942]
[1754574591860,0.7561,3860.8,3860.3,4.183]
[1754574592148,3.803307,3860.7,3860.0,2.5906573]
[1754574592370,2.58962018,3861.6,3859.9,4.183]
[1754574592539,2.91360449,3862.5,3860.0,4.183]
[1754574592540,0.7561,3860.8,3860.0,4.183]
[1754574593075,0.7561,3860.8,3860.3,2.59046405]
[1754574593278,2.59021351,3860.7,3859.8,12.90736709]
[1754574593574,7.03163171,3861.5,3859.9,7.183]
[1754574593575,1.2131,3860.6,3859.9,7.183]
[1754574593785,4.44196202,3861.5,3860.6,2.59020671]
[1754574593786,0.7561,3861.1,3860.6,2.59020671]
[1754574593938,7.2288024,3861.3,3860.5,4.182]
[1754574594137,0.7561,3861.0,3860.6,2.5902108]
[1754574594334,0.4441962,3861.4,3860.7,2.59020384]
[1754574594569,0.4441962,3861.4,3860.6,12.90736709]
[1754574594769,1.01506202,3861.5,3860.6,12.90736709]
[1754574594770,1.01506202,3861.5,3860.8,4.182]
[1754574594943,6.226,3862.1,3861.1,12.90736709]
[1754574594944,0.7561,3862.1,3861.1,12.90736709]
[1754574595143,0.7561,3862.1,3861.3,2.58979386]
[1754574595448,0.457,3862.0,3861.0,4.181]
[1754574595660,2.58946812,3861.8,3861.0,4.181]